[Event "Titled Tuesday Blitz August 1 Early 2023"]
[White "Rosen, Eric"]
[Black "Al Mukhaini, Shima"]
[WhiteFideId "2032562"]
[BlackFideId "22005854"]
[WhiteElo "2685"]
[BlackElo "2379"]
[Result "0-1"]
[Round "1"]
[TimeControl "180+1"]
[Date "2023.08.01"]
[WhiteClock "0:00:00"]
[BlackClock "0:00:41"]
[Board "122"]

1. d4 {[%clk 0:03:00]}  d5 {[%clk 0:02:59]} 2. Bf4 {[%clk 0:03:00]}  Bf5 {[%clk 0:02:58]} 3. e3 {[%clk 0:03:00]}  e6 {[%clk 0:02:58]} 4. Nf3 {[%clk 0:03:00]}  Bd6 {[%clk 0:02:58]} 5. Bg3 {[%clk 0:02:58]}  Bxg3 {[%clk 0:02:57]} 6. hxg3 {[%clk 0:02:58]}  Nf6 {[%clk 0:02:57]} 7. Bd3 {[%clk 0:02:54]}  Bxd3 {[%clk 0:02:57]} 8. cxd3 {[%clk 0:02:52]}  Nbd7 {[%clk 0:02:56]} 9. Nc3 {[%clk 0:02:52]}  O-O {[%clk 0:02:53]} 10. Rc1 {[%clk 0:02:50]}  c5 {[%clk 0:02:51]} 11. O-O {[%clk 0:02:34]}  cxd4 {[%clk 0:02:51]} 12. Nxd4 {[%clk 0:02:33]}  Rc8 {[%clk 0:02:50]} 13. g4 {[%clk 0:02:23]}  a6 {[%clk 0:02:48]} 14. g3 {[%clk 0:02:18]}  h6 {[%clk 0:02:47]} 15. Kg2 {[%clk 0:02:18]}  b5 {[%clk 0:02:44]} 16. Rh1 {[%clk 0:02:12]}  Ne5 {[%clk 0:02:43]} 17. Rh4 {[%clk 0:01:56]}  Ng6 {[%clk 0:02:40]} 18. Rh2 {[%clk 0:01:53]}  b4 {[%clk 0:02:40]} 19. Nce2 {[%clk 0:01:48]}  Nxg4 {[%clk 0:02:36]} 20. Rh1 {[%clk 0:01:46]}  Rxc1 {[%clk 0:02:34]} 21. Nxc1 {[%clk 0:01:46]}  Nf6 {[%clk 0:02:28]} 22. Qa4 {[%clk 0:01:46]}  Qd6 {[%clk 0:02:27]} 23. Nc2 {[%clk 0:01:27]}  Rb8 {[%clk 0:02:19]} 24. d4 {[%clk 0:01:27]}  Ne4 {[%clk 0:02:17]} 25. Nd3 {[%clk 0:01:26]}  Ne7 {[%clk 0:02:07]} 26. Ncxb4 {[%clk 0:01:25]}  Nf5 {[%clk 0:01:49]} 27. Qxa6 {[%clk 0:01:21]}  Rb6 {[%clk 0:01:49]} 28. Qc8+ {[%clk 0:01:04]}  Kh7 {[%clk 0:01:49]} 29. g4 {[%clk 0:00:52]}  Nxe3+ {[%clk 0:01:37]} 30. Kf3 {[%clk 0:00:35]}  Nxg4 {[%clk 0:01:21]} 31. Kxg4 {[%clk 0:00:24]}  Rxb4 {[%clk 0:01:16]} 32. Nxb4 {[%clk 0:00:17]}  Nxf2+ {[%clk 0:01:15]} 33. Kf3 {[%clk 0:00:17]}  Nxh1 {[%clk 0:01:16]} 34. Qc2+ {[%clk 0:00:06]}  g6 {[%clk 0:01:14]} 35. a3 {[%clk 0:00:04]}  Qg3+ {[%clk 0:01:13]} 36. Ke2 {[%clk 0:00:05]}  Qf2+ {[%clk 0:01:11]} 37. Kd3 {[%clk 0:00:04]}  Qf3+ {[%clk 0:01:01]} 38. Kd2 {[%clk 0:00:03]}  Nf2 {[%clk 0:01:02]} 39. Qc7 {[%clk 0:00:02]}  Ne4+ {[%clk 0:01:00]} 40. Kc2 {[%clk 0:00:02]}  Kg7 {[%clk 0:00:52]} 41. Nc6 {[%clk 0:00:02]}  Qe2+ {[%clk 0:00:50]} 42. Kb1 {[%clk 0:00:02]}  Qd3+ {[%clk 0:00:48]} 43. Ka2 {[%clk 0:00:02]}  Qc4+ {[%clk 0:00:48]} 44. Kb1 {[%clk 0:00:01]}  Nd2+ {[%clk 0:00:49]} 45. Ka1 {[%clk 0:00:01]}  Qc1+ {[%clk 0:00:49]} 46. Ka2 {[%clk 0:00:01]}  Qc4+ {[%clk 0:00:49]} 47. Ka1 {[%clk 0:00:01]}  Nb3+ {[%clk 0:00:50]} 48. Kb1 {[%clk 0:00:01]}  Nxd4 {[%clk 0:00:50]} 49. Nxd4 {[%clk 0:00:01]}  Qxc7 {[%clk 0:00:50]} 50. Nc2 {[%clk 0:00:01]}  h5 {[%clk 0:00:49]} 51. b4 {[%clk 0:00:01]}  h4 {[%clk 0:00:42]} 52. b5 {[%clk 0:00:01]}  h3 {[%clk 0:00:42]} 53. a4 {[%clk 0:00:02]}  h2 {[%clk 0:00:42]} 54. a5 {[%clk 0:00:01]}  h1=Q+ {[%clk 0:00:42]} 55. Kb2 {[%clk 0:00:02]}  Qxa5 {[%clk 0:00:42]} 56. Kb3 {[%clk 0:00:01]}  Qxb5+ {[%clk 0:00:42]} 57. Kc3 {[%clk 0:00:01]}  Qf3+ {[%clk 0:00:41]} 58. Kd2 {[%clk 0:00:01]}  Qbe2+ {[%clk 0:00:40]} 59. Kc1 {[%clk 0:00:02]}  Qxc2+ {[%clk 0:00:41]} 60. Kxc2 {[%clk 0:00:00]}  g5 {[%clk 0:00:41]} 0-1


[Site "https://www.chess.com"]

[Event "Titled Tuesday Blitz August 1 Early 2023"]
[White "Turayev, Shahruh"]
[Black "Spichkin, Alexander"]
[WhiteFideId "14003856"]
[BlackFideId "4144074"]
[WhiteElo "2682"]
[BlackElo "2377"]
[Result "1-0"]
[Round "1"]
[TimeControl "180+1"]
[Date "2023.08.01"]
[WhiteClock "0:00:26"]
[BlackClock "0:00:15"]
[Board "124"]

1. d4 {[%clk 0:02:59]}  e6 {[%clk 0:02:56]} 2. c4 {[%clk 0:02:59]}  f5 {[%clk 0:02:56]} 3. Nc3 {[%clk 0:02:58]}  Bb4 {[%clk 0:02:54]} 4. g3 {[%clk 0:02:56]}  Nf6 {[%clk 0:02:54]} 5. Bg2 {[%clk 0:02:56]}  Bxc3+ {[%clk 0:02:55]} 6. bxc3 {[%clk 0:02:56]}  O-O {[%clk 0:02:55]} 7. Nh3 {[%clk 0:02:56]}  Ne4 {[%clk 0:02:55]} 8. O-O {[%clk 0:02:47]}  Nxc3 {[%clk 0:02:54]} 9. Qc2 {[%clk 0:02:45]}  Ne4 {[%clk 0:02:52]} 10. Bxe4 {[%clk 0:02:38]}  fxe4 {[%clk 0:02:51]} 11. Qxe4 {[%clk 0:02:39]}  d5 {[%clk 0:02:51]} 12. Qc2 {[%clk 0:02:29]}  Nc6 {[%clk 0:02:49]} 13. Rd1 {[%clk 0:02:25]}  e5 {[%clk 0:02:44]} 14. Ng5 {[%clk 0:02:24]}  Bf5 {[%clk 0:02:43]} 15. e4 {[%clk 0:02:16]}  Nxd4 {[%clk 0:02:33]} 16. Rxd4 {[%clk 0:02:15]}  exd4 {[%clk 0:02:31]} 17. exf5 {[%clk 0:02:16]}  Qf6 {[%clk 0:02:27]} 18. cxd5 {[%clk 0:01:59]}  d3 {[%clk 0:02:24]} 19. Qb1 {[%clk 0:01:49]}  Qxf5 {[%clk 0:02:16]} 20. Be3 {[%clk 0:01:49]}  Qxd5 {[%clk 0:02:06]} 21. Nh3 {[%clk 0:01:46]}  Rad8 {[%clk 0:01:55]} 22. Nf4 {[%clk 0:01:45]}  Qc4 {[%clk 0:01:55]} 23. Qxb7 {[%clk 0:01:42]}  Qc2 {[%clk 0:01:35]} 24. Qb3+ {[%clk 0:01:32]}  Qxb3 {[%clk 0:01:34]} 25. axb3 {[%clk 0:01:33]}  d2 {[%clk 0:01:24]} 26. Rd1 {[%clk 0:01:32]}  a5 {[%clk 0:01:23]} 27. Ne6 {[%clk 0:01:27]}  Rd3 {[%clk 0:01:19]} 28. Nxf8 {[%clk 0:01:25]}  Kxf8 {[%clk 0:01:19]} 29. Rxd2 {[%clk 0:01:25]}  Rxb3 {[%clk 0:01:17]} 30. Rd7 {[%clk 0:01:21]}  Rc3 {[%clk 0:01:05]} 31. Rd5 {[%clk 0:01:13]}  a4 {[%clk 0:01:03]} 32. Ra5 {[%clk 0:01:07]}  Rc4 {[%clk 0:01:03]} 33. Kf1 {[%clk 0:01:04]}  Ke7 {[%clk 0:01:03]} 34. Ke2 {[%clk 0:01:04]}  Kd6 {[%clk 0:01:03]} 35. Kd3 {[%clk 0:01:05]}  Rg4 {[%clk 0:00:56]} 36. h3 {[%clk 0:01:03]}  Rg6 {[%clk 0:00:52]} 37. Rxa4 {[%clk 0:00:51]}  c6 {[%clk 0:00:52]} 38. Rd4+ {[%clk 0:00:50]}  Ke5 {[%clk 0:00:51]} 39. Rg4 {[%clk 0:00:49]}  Rd6+ {[%clk 0:00:51]} 40. Kc4 {[%clk 0:00:48]}  Rd7 {[%clk 0:00:49]} 41. Rxg7 {[%clk 0:00:46]}  Rd1 {[%clk 0:00:46]} 42. Rxh7 {[%clk 0:00:41]}  Kf5 {[%clk 0:00:45]} 43. g4+ {[%clk 0:00:39]}  Ke4 {[%clk 0:00:44]} 44. Re7+ {[%clk 0:00:39]}  Kf3 {[%clk 0:00:42]} 45. g5 {[%clk 0:00:39]}  Rg1 {[%clk 0:00:42]} 46. Kc5 {[%clk 0:00:37]}  Kg2 {[%clk 0:00:39]} 47. g6 {[%clk 0:00:37]}  Kxh3 {[%clk 0:00:39]} 48. g7 {[%clk 0:00:37]}  Kh4 {[%clk 0:00:39]} 49. Kxc6 {[%clk 0:00:36]}  Kh5 {[%clk 0:00:37]} 50. Kd7 {[%clk 0:00:36]}  Rg2 {[%clk 0:00:33]} 51. Ke8 {[%clk 0:00:36]}  Rg1 {[%clk 0:00:28]} 52. Kf8 {[%clk 0:00:35]}  Rg4 {[%clk 0:00:21]} 53. Kg8 {[%clk 0:00:34]}  Rg6 {[%clk 0:00:20]} 54. Kh7 {[%clk 0:00:33]}  Rf6 {[%clk 0:00:19]} 55. Re5+ {[%clk 0:00:26]}  Kh4 {[%clk 0:00:18]} 56. Bg5+ {[%clk 0:00:26]}  Kg4 {[%clk 0:00:16]} 57. Bxf6 {[%clk 0:00:26]}  Kf3 {[%clk 0:00:15]} 58. g8=Q {[%clk 0:00:26]} 1-0


[Site "https://www.chess.com"]

[Event "Titled Tuesday Blitz August 1 Early 2023"]
[White "Begunov, Konstantin"]
[Black "Do Valle Cardoso, Lucas"]
[WhiteFideId "4118510"]
[BlackFideId "2163144"]
[WhiteElo "2372"]
[BlackElo "2674"]
[Result "1-0"]
[Round "1"]
[TimeControl "180+1"]
[Date "2023.08.01"]
[WhiteClock "0:00:01"]
[BlackClock "0:00:00"]
[Board "129"]

1. d4 {[%clk 0:02:58]}  d5 {[%clk 0:02:28]} 2. c4 {[%clk 0:02:57]}  dxc4 {[%clk 0:02:29]} 3. Nf3 {[%clk 0:02:56]}  Nf6 {[%clk 0:02:25]} 4. e3 {[%clk 0:02:56]}  b5 {[%clk 0:02:26]} 5. a4 {[%clk 0:02:56]}  b4 {[%clk 0:02:26]} 6. Bxc4 {[%clk 0:02:55]}  e6 {[%clk 0:02:26]} 7. O-O {[%clk 0:02:50]}  Be7 {[%clk 0:02:27]} 8. Nbd2 {[%clk 0:02:47]}  O-O {[%clk 0:02:27]} 9. Nb3 {[%clk 0:02:47]}  Nbd7 {[%clk 0:02:26]} 10. Na5 {[%clk 0:02:05]}  c5 {[%clk 0:02:26]} 11. Nc6 {[%clk 0:02:03]}  Qe8 {[%clk 0:02:26]} 12. Nxe7+ {[%clk 0:01:54]}  Qxe7 {[%clk 0:02:27]} 13. Qe2 {[%clk 0:01:46]}  Bb7 {[%clk 0:02:27]} 14. Rd1 {[%clk 0:01:42]}  Rac8 {[%clk 0:02:22]} 15. a5 {[%clk 0:01:30]}  cxd4 {[%clk 0:02:21]} 16. Nxd4 {[%clk 0:01:28]}  Ne5 {[%clk 0:02:13]} 17. Bb5 {[%clk 0:01:19]}  Rfd8 {[%clk 0:02:11]} 18. a6 {[%clk 0:01:11]}  Bd5 {[%clk 0:02:04]} 19. Bd2 {[%clk 0:00:58]}  h5 {[%clk 0:01:39]} 20. Be1 {[%clk 0:00:56]}  h4 {[%clk 0:01:27]} 21. h3 {[%clk 0:00:54]}  Ne4 {[%clk 0:01:27]} 22. Ra4 {[%clk 0:00:37]}  Qg5 {[%clk 0:01:18]} 23. f4 {[%clk 0:00:34]}  Qf6 {[%clk 0:00:47]} 24. fxe5 {[%clk 0:00:34]}  Qxe5 {[%clk 0:00:48]} 25. Bxh4 {[%clk 0:00:34]}  g5 {[%clk 0:00:27]} 26. Be1 {[%clk 0:00:30]}  Ba8 {[%clk 0:00:27]} 27. Rxb4 {[%clk 0:00:26]}  Rb8 {[%clk 0:00:24]} 28. Bd3 {[%clk 0:00:23]}  Rxb4 {[%clk 0:00:18]} 29. Bxb4 {[%clk 0:00:24]}  Rxd4 {[%clk 0:00:16]} 30. exd4 {[%clk 0:00:16]}  Qxd4+ {[%clk 0:00:17]} 31. Kh2 {[%clk 0:00:15]}  Qe5+ {[%clk 0:00:17]} 32. Kg1 {[%clk 0:00:14]}  Qd4+ {[%clk 0:00:17]} 33. Kh2 {[%clk 0:00:12]}  Qxb4 {[%clk 0:00:06]} 34. Bxe4 {[%clk 0:00:12]}  Bxe4 {[%clk 0:00:06]} 35. Qe3 {[%clk 0:00:10]}  Qb8+ {[%clk 0:00:05]} 36. Qg3 {[%clk 0:00:10]}  Qb5 {[%clk 0:00:05]} 37. Rd4 {[%clk 0:00:08]}  Bg6 {[%clk 0:00:04]} 38. Qe3 {[%clk 0:00:05]}  Qxa6 {[%clk 0:00:03]} 39. Qe5 {[%clk 0:00:04]}  Qb6 {[%clk 0:00:02]} 40. Rc4 {[%clk 0:00:02]}  Qd8 {[%clk 0:00:00]} 41. Rc7 {[%clk 0:00:01]} 1-0


[Site "https://www.chess.com"]

[Event "Titled Tuesday Blitz August 1 Early 2023"]
[White "Lopez Gracia, Fernando"]
[Black "caropawn10"]
[WhiteFideId "2207184"]
[WhiteElo "2368"]
[BlackElo "2669"]
[Result "0-1"]
[Round "1"]
[TimeControl "180+1"]
[Date "2023.08.01"]
[WhiteClock "0:00:58"]
[BlackClock "0:02:20"]
[Board "131"]

1. e4 {[%clk 0:02:58]}  c6 {[%clk 0:03:00]} 2. Nf3 {[%clk 0:02:55]}  d5 {[%clk 0:02:59]} 3. d3 {[%clk 0:02:55]}  Bg4 {[%clk 0:03:00]} 4. g3 {[%clk 0:02:52]}  dxe4 {[%clk 0:02:58]} 5. Nbd2 {[%clk 0:02:11]}  Bxf3 {[%clk 0:02:57]} 6. Nxf3 {[%clk 0:02:11]}  exf3 {[%clk 0:02:58]} 7. Qxf3 {[%clk 0:02:11]}  Nf6 {[%clk 0:02:58]} 8. Bg2 {[%clk 0:02:09]}  g6 {[%clk 0:02:56]} 9. Bg5 {[%clk 0:02:10]}  Bg7 {[%clk 0:02:54]} 10. O-O-O {[%clk 0:02:10]}  O-O {[%clk 0:02:54]} 11. h4 {[%clk 0:02:11]}  h5 {[%clk 0:02:53]} 12. Rde1 {[%clk 0:02:06]}  Nbd7 {[%clk 0:02:53]} 13. Qe2 {[%clk 0:02:03]}  Qa5 {[%clk 0:02:48]} 14. Kb1 {[%clk 0:02:00]}  e6 {[%clk 0:02:48]} 15. f3 {[%clk 0:02:00]}  Nd5 {[%clk 0:02:46]} 16. Bd2 {[%clk 0:01:35]}  Qb6 {[%clk 0:02:43]} 17. b3 {[%clk 0:01:25]}  Qd4 {[%clk 0:02:43]} 18. c3 {[%clk 0:01:18]}  Nxc3+ {[%clk 0:02:42]} 19. Bxc3 {[%clk 0:01:19]}  Qxc3 {[%clk 0:02:42]} 20. g4 {[%clk 0:01:17]}  Qa1+ {[%clk 0:02:42]} 21. Kc2 {[%clk 0:01:18]}  Qxa2+ {[%clk 0:02:42]} 22. Kd1 {[%clk 0:01:15]}  Qxb3+ {[%clk 0:02:39]} 23. Kc1 {[%clk 0:01:14]}  Qc3+ {[%clk 0:02:33]} 24. Kd1 {[%clk 0:01:12]}  Nc5 {[%clk 0:02:24]} 25. gxh5 {[%clk 0:00:58]}  Nxd3 {[%clk 0:02:20]} 0-1


[Site "https://www.chess.com"]

[Event "Titled Tuesday Blitz August 1 Early 2023"]
[White "benny_aizenberg"]
[Black "Llanos, Guillermo"]
[BlackFideId "100358"]
[WhiteElo "2659"]
[BlackElo "2366"]
[Result "1-0"]
[Round "1"]
[TimeControl "180+1"]
[Date "2023.08.01"]
[WhiteClock "0:00:24"]
[BlackClock "0:00:03"]
[Board "136"]

1. c4 {[%clk 0:02:40]}  b6 {[%clk 0:02:58]} 2. d4 {[%clk 0:02:37]}  Nf6 {[%clk 0:02:56]} 3. f3 {[%clk 0:02:30]}  Nc6 {[%clk 0:02:55]} 4. d5 {[%clk 0:02:17]}  Ne5 {[%clk 0:02:53]} 5. e4 {[%clk 0:02:16]}  e6 {[%clk 0:02:53]} 6. Nc3 {[%clk 0:02:15]}  Bb4 {[%clk 0:02:48]} 7. Qc2 {[%clk 0:01:57]}  O-O {[%clk 0:02:42]} 8. Be3 {[%clk 0:01:56]}  Re8 {[%clk 0:02:32]} 9. O-O-O {[%clk 0:01:43]}  exd5 {[%clk 0:02:16]} 10. cxd5 {[%clk 0:01:31]}  d6 {[%clk 0:01:33]} 11. Bb5 {[%clk 0:01:24]}  Bd7 {[%clk 0:01:31]} 12. Nge2 {[%clk 0:01:17]}  a6 {[%clk 0:01:25]} 13. Bxd7 {[%clk 0:01:16]}  Nfxd7 {[%clk 0:01:23]} 14. Qb3 {[%clk 0:01:11]}  Bc5 {[%clk 0:01:22]} 15. Nd4 {[%clk 0:01:05]}  Bxd4 {[%clk 0:01:19]} 16. Bxd4 {[%clk 0:01:04]}  Nc5 {[%clk 0:01:13]} 17. Qc2 {[%clk 0:01:03]}  f6 {[%clk 0:00:52]} 18. Kb1 {[%clk 0:01:01]}  Qd7 {[%clk 0:00:48]} 19. Ne2 {[%clk 0:00:59]}  Qa4 {[%clk 0:00:44]} 20. Qxa4 {[%clk 0:00:52]}  Nxa4 {[%clk 0:00:43]} 21. Nf4 {[%clk 0:00:51]}  Nc5 {[%clk 0:00:43]} 22. Bxc5 {[%clk 0:00:52]}  bxc5 {[%clk 0:00:43]} 23. Ne6 {[%clk 0:00:52]}  Re7 {[%clk 0:00:41]} 24. Rhe1 {[%clk 0:00:51]}  c6 {[%clk 0:00:37]} 25. Nf4 {[%clk 0:00:47]}  cxd5 {[%clk 0:00:35]} 26. Rxd5 {[%clk 0:00:46]}  Rd8 {[%clk 0:00:33]} 27. Red1 {[%clk 0:00:46]}  Nc4 {[%clk 0:00:30]} 28. b3 {[%clk 0:00:40]}  Ne3 {[%clk 0:00:28]} 29. Rxd6 {[%clk 0:00:39]}  Rxd6 {[%clk 0:00:25]} 30. Rxd6 {[%clk 0:00:40]}  g5 {[%clk 0:00:23]} 31. Nd5 {[%clk 0:00:40]}  Nxd5 {[%clk 0:00:22]} 32. Rxd5 {[%clk 0:00:41]}  Rc7 {[%clk 0:00:22]} 33. Rd6 {[%clk 0:00:40]}  a5 {[%clk 0:00:20]} 34. Rxf6 {[%clk 0:00:39]}  c4 {[%clk 0:00:20]} 35. Rf5 {[%clk 0:00:39]}  cxb3 {[%clk 0:00:20]} 36. Rxg5+ {[%clk 0:00:39]}  Kf7 {[%clk 0:00:20]} 37. axb3 {[%clk 0:00:39]}  Rc3 {[%clk 0:00:19]} 38. Kb2 {[%clk 0:00:38]}  Re3 {[%clk 0:00:19]} 39. Ka3 {[%clk 0:00:37]}  Kf6 {[%clk 0:00:18]} 40. Rf5+ {[%clk 0:00:37]}  Ke6 {[%clk 0:00:17]} 41. Rxa5 {[%clk 0:00:37]}  Re2 {[%clk 0:00:17]} 42. Rg5 {[%clk 0:00:37]}  h6 {[%clk 0:00:17]} 43. Rg6+ {[%clk 0:00:37]}  Ke5 {[%clk 0:00:17]} 44. Rg8 {[%clk 0:00:36]}  Kd4 {[%clk 0:00:16]} 45. Kb4 {[%clk 0:00:37]}  Ra2 {[%clk 0:00:15]} 46. Rh8 {[%clk 0:00:36]}  Ra6 {[%clk 0:00:15]} 47. Kb5 {[%clk 0:00:35]}  Rg6 {[%clk 0:00:15]} 48. Rd8+ {[%clk 0:00:34]}  Ke3 {[%clk 0:00:14]} 49. e5 {[%clk 0:00:33]}  Rxg2 {[%clk 0:00:13]} 50. e6 {[%clk 0:00:31]}  Rg5+ {[%clk 0:00:11]} 51. Kc6 {[%clk 0:00:29]}  Re5 {[%clk 0:00:10]} 52. Kd6 {[%clk 0:00:28]}  Kd4 {[%clk 0:00:10]} 53. e7 {[%clk 0:00:26]}  Re1 {[%clk 0:00:03]} 54. e8=Q {[%clk 0:00:24]} 1-0


[Site "https://www.chess.com"]

[Event "Titled Tuesday Blitz August 1 Early 2023"]
[White "Arias, Juan Cruz"]
[Black "Gu, Xiaobing"]
[WhiteFideId "118540"]
[BlackFideId "8602611"]
[WhiteElo "2653"]
[BlackElo "2366"]
[Result "1-0"]
[Round "1"]
[TimeControl "180+1"]
[Date "2023.08.01"]
[WhiteClock "0:02:05"]
[BlackClock "0:01:57"]
[Board "138"]

1. d4 {[%clk 0:02:59]}  Nf6 {[%clk 0:02:58]} 2. Nf3 {[%clk 0:02:59]}  d5 {[%clk 0:02:57]} 3. e3 {[%clk 0:02:59]}  e6 {[%clk 0:02:50]} 4. Bd3 {[%clk 0:02:58]}  c5 {[%clk 0:02:49]} 5. c3 {[%clk 0:02:56]}  Nc6 {[%clk 0:02:48]} 6. O-O {[%clk 0:02:56]}  b6 {[%clk 0:02:45]} 7. Nbd2 {[%clk 0:02:56]}  Bb7 {[%clk 0:02:45]} 8. Ne5 {[%clk 0:02:48]}  Be7 {[%clk 0:02:40]} 9. f4 {[%clk 0:02:47]}  Nxe5 {[%clk 0:02:28]} 10. fxe5 {[%clk 0:02:45]}  Ne4 {[%clk 0:02:28]} 11. Nxe4 {[%clk 0:02:43]}  dxe4 {[%clk 0:02:28]} 12. Bb5+ {[%clk 0:02:44]}  Kf8 {[%clk 0:02:26]} 13. Qh5 {[%clk 0:02:41]}  g6 {[%clk 0:02:23]} 14. Qh6+ {[%clk 0:02:40]}  Kg8 {[%clk 0:02:23]} 15. Bd2 {[%clk 0:02:37]}  Bf8 {[%clk 0:02:16]} 16. Qh3 {[%clk 0:02:35]}  h5 {[%clk 0:02:15]} 17. Rf6 {[%clk 0:02:24]}  Bg7 {[%clk 0:02:13]} 18. Rf2 {[%clk 0:02:22]}  Rc8 {[%clk 0:02:05]} 19. Raf1 {[%clk 0:02:19]}  Rc7 {[%clk 0:02:05]} 20. Rxf7 {[%clk 0:02:15]}  Rxf7 {[%clk 0:02:02]} 21. Qxe6 {[%clk 0:02:15]}  Qe7 {[%clk 0:02:02]} 22. Bc4 {[%clk 0:02:13]}  Qxe6 {[%clk 0:01:57]} 23. Bxe6 {[%clk 0:02:13]}  Kh7 {[%clk 0:01:58]} 24. Rxf7 {[%clk 0:02:05]}  Ba6 {[%clk 0:01:57]} 1-0


[Site "https://www.chess.com"]

[Event "Titled Tuesday Blitz August 1 Early 2023"]
[White "Buscar, Michael"]
[Black "Martic, Ivan"]
[WhiteFideId "2603616"]
[BlackFideId "929301"]
[WhiteElo "2365"]
[BlackElo "2651"]
[Result "1-0"]
[Round "1"]
[TimeControl "180+1"]
[Date "2023.08.01"]
[WhiteClock "0:00:19"]
[BlackClock "0:00:13"]
[Board "139"]

1. Nf3 {[%clk 0:02:59]}  Nf6 {[%clk 0:02:59]} 2. c4 {[%clk 0:02:59]}  c6 {[%clk 0:02:59]} 3. b3 {[%clk 0:02:58]}  d5 {[%clk 0:02:59]} 4. Bb2 {[%clk 0:02:58]}  Bf5 {[%clk 0:02:57]} 5. d3 {[%clk 0:02:57]}  e6 {[%clk 0:02:57]} 6. Nh4 {[%clk 0:02:54]}  Bg4 {[%clk 0:02:57]} 7. h3 {[%clk 0:02:53]}  Bh5 {[%clk 0:02:55]} 8. g4 {[%clk 0:02:53]}  Bg6 {[%clk 0:02:55]} 9. Nxg6 {[%clk 0:02:53]}  hxg6 {[%clk 0:02:55]} 10. Bg2 {[%clk 0:02:54]}  Nbd7 {[%clk 0:02:54]} 11. Nd2 {[%clk 0:02:50]}  a5 {[%clk 0:02:53]} 12. a3 {[%clk 0:02:49]}  Qb6 {[%clk 0:02:52]} 13. O-O {[%clk 0:02:45]}  Be7 {[%clk 0:02:50]} 14. Nf3 {[%clk 0:02:44]}  Nc5 {[%clk 0:02:43]} 15. Bd4 {[%clk 0:02:37]}  Qxb3 {[%clk 0:02:38]} 16. cxd5 {[%clk 0:02:31]}  Qxd1 {[%clk 0:02:35]} 17. Rfxd1 {[%clk 0:02:28]}  cxd5 {[%clk 0:02:29]} 18. Rdb1 {[%clk 0:02:26]}  Rb8 {[%clk 0:02:17]} 19. Rb5 {[%clk 0:02:25]}  b6 {[%clk 0:02:13]} 20. Ne5 {[%clk 0:02:20]}  Bd6 {[%clk 0:01:59]} 21. Rab1 {[%clk 0:02:15]}  Na4 {[%clk 0:01:57]} 22. Nc6 {[%clk 0:02:07]}  Rc8 {[%clk 0:01:50]} 23. Na7 {[%clk 0:02:00]}  Rc7 {[%clk 0:01:35]} 24. Bxb6 {[%clk 0:01:57]}  Nxb6 {[%clk 0:01:30]} 25. Rxb6 {[%clk 0:01:57]}  Rxa7 {[%clk 0:01:21]} 26. Rxd6 {[%clk 0:01:53]}  O-O {[%clk 0:01:17]} 27. Rdb6 {[%clk 0:01:46]}  Rc7 {[%clk 0:01:12]} 28. Rb8 {[%clk 0:01:41]}  Rc2 {[%clk 0:01:11]} 29. Bf3 {[%clk 0:01:38]}  g5 {[%clk 0:01:09]} 30. Rxf8+ {[%clk 0:01:36]}  Kxf8 {[%clk 0:01:10]} 31. Rb8+ {[%clk 0:01:36]}  Ke7 {[%clk 0:01:10]} 32. Ra8 {[%clk 0:01:37]}  e5 {[%clk 0:01:06]} 33. Ra7+ {[%clk 0:01:34]}  Ke6 {[%clk 0:01:01]} 34. Ra6+ {[%clk 0:01:33]}  Ke7 {[%clk 0:01:01]} 35. Rxa5 {[%clk 0:01:33]}  e4 {[%clk 0:01:01]} 36. dxe4 {[%clk 0:01:33]}  dxe4 {[%clk 0:01:01]} 37. Bg2 {[%clk 0:01:30]}  Rxe2 {[%clk 0:01:00]} 38. Rxg5 {[%clk 0:01:29]}  Re1+ {[%clk 0:00:56]} 39. Kh2 {[%clk 0:01:28]}  Re2 {[%clk 0:00:53]} 40. Kg3 {[%clk 0:01:25]}  e3 {[%clk 0:00:50]} 41. Re5+ {[%clk 0:01:24]}  Kd6 {[%clk 0:00:48]} 42. Rxe3 {[%clk 0:01:24]}  Ra2 {[%clk 0:00:47]} 43. h4 {[%clk 0:01:21]}  g6 {[%clk 0:00:46]} 44. Rd3+ {[%clk 0:01:16]}  Ke7 {[%clk 0:00:42]} 45. Bf3 {[%clk 0:01:16]}  Nd7 {[%clk 0:00:41]} 46. Re3+ {[%clk 0:01:14]}  Kd6 {[%clk 0:00:40]} 47. h5 {[%clk 0:01:09]}  gxh5 {[%clk 0:00:41]} 48. gxh5 {[%clk 0:01:09]}  Nf6 {[%clk 0:00:41]} 49. Rb3 {[%clk 0:01:00]}  Ra1 {[%clk 0:00:40]} 50. Rb6+ {[%clk 0:00:57]}  Ke7 {[%clk 0:00:39]} 51. Rb3 {[%clk 0:00:54]}  Kf8 {[%clk 0:00:37]} 52. h6 {[%clk 0:00:53]}  Rg1+ {[%clk 0:00:33]} 53. Kf4 {[%clk 0:00:50]}  Rg6 {[%clk 0:00:30]} 54. Rb8+ {[%clk 0:00:44]}  Ke7 {[%clk 0:00:30]} 55. Rb7+ {[%clk 0:00:44]}  Kf8 {[%clk 0:00:30]} 56. Rb8+ {[%clk 0:00:44]}  Ke7 {[%clk 0:00:30]} 57. Rh8 {[%clk 0:00:44]}  Kd7 {[%clk 0:00:17]} 58. a4 {[%clk 0:00:43]}  Ke7 {[%clk 0:00:16]} 59. a5 {[%clk 0:00:42]}  Nd7 {[%clk 0:00:16]} 60. h7 {[%clk 0:00:39]}  Rh6 {[%clk 0:00:16]} 61. Be4 {[%clk 0:00:37]}  Nf6 {[%clk 0:00:16]} 62. Bf5 {[%clk 0:00:32]}  Rh4+ {[%clk 0:00:15]} 63. Kg3 {[%clk 0:00:26]}  Rh5 {[%clk 0:00:15]} 64. Bd3 {[%clk 0:00:21]}  Nxh7 {[%clk 0:00:13]} 65. Rxh7 {[%clk 0:00:20]}  Rxa5 {[%clk 0:00:13]} 66. Bc4 {[%clk 0:00:17]}  Rf5 {[%clk 0:00:12]} 67. Rxf7+ {[%clk 0:00:15]}  Rxf7 {[%clk 0:00:13]} 68. Bxf7 {[%clk 0:00:16]}  Kxf7 {[%clk 0:00:14]} 69. Kf4 {[%clk 0:00:16]}  Kf6 {[%clk 0:00:15]} 70. f3 {[%clk 0:00:16]}  Ke7 {[%clk 0:00:15]} 71. Ke5 {[%clk 0:00:16]}  Kf7 {[%clk 0:00:15]} 72. Kf5 {[%clk 0:00:16]}  Kg7 {[%clk 0:00:16]} 73. Ke6 {[%clk 0:00:16]}  Kf8 {[%clk 0:00:15]} 74. Kf6 {[%clk 0:00:16]}  Ke8 {[%clk 0:00:16]} 75. f4 {[%clk 0:00:16]}  Kf8 {[%clk 0:00:17]} 76. f5 {[%clk 0:00:17]}  Kg8 {[%clk 0:00:17]} 77. Ke7 {[%clk 0:00:17]}  Kg7 {[%clk 0:00:17]} 78. f6+ {[%clk 0:00:18]}  Kh7 {[%clk 0:00:18]} 79. f7 {[%clk 0:00:18]}  Kg6 {[%clk 0:00:13]} 80. f8=Q {[%clk 0:00:19]} 1-0


[Site "https://www.chess.com"]